Cogmind - Beta 16 @@@ ROGUE MODE // 2025.12.18 @ 13:06:20 Player: emory Result: Destroyed by G-34 Mercenary with Small Laser Performance ------------- Evolutions (1) 500 Regions Visited (2) 400 Robots Destroyed (33) 165 Value Destroyed (676) 676 Prototype IDs (0) 0 Alien Tech Used (0) 0 Bonus (0) 0 TOTAL SCORE: 1741 Bonus ------- None Cogmind --------- Core Integrity 0/400 Matter 300/300 Energy 240/240 System Corruption 0% Temperature Cool (6) Movement Rolling (95) Ox1 Location -9/Materials Parts ------- > --- POWER (1) -------- Nuclear Core > --- PROPULSION (2) --- Wheel Compact Wheel > --- UTILITY (4) ------ High-capacity Storage Unit Signal Interpreter Hacking Suite > --- WEAPON (2) ------- Small Laser > --- INVENTORY (20) --- Light Ion Engine Light Ion Engine Nuclear Core Nuclear Core Nuclear Core Wheel Wheel Wheel Hover Unit Hover Unit Hover Unit Hover Unit Hover Unit Heat Sink Signal Interpreter Transport Network Coupler Grenade Launcher Datajack Peak State ------------ > --- POWER ------------ Nuclear Core > --- PROPULSION ------- Wheel Compact Wheel > --- UTILITY ---------- High-capacity Storage Unit Signal Interpreter ECM Suite Hacking Suite > --- WEAPON ----------- Small Laser > --- INVENTORY -------- Light Ion Engine Light Ion Engine Nuclear Core Nuclear Core Nuclear Core Wheel Wheel Wheel Hover Unit Hover Unit Hover Unit Hover Unit Hover Unit Heat Sink Signal Interpreter Transport Network Coupler Grenade Launcher Datajack [Rating: 14] Favorites ----------- Power Ion Engine Engine Ion Engine Power Core Nuclear Core Propulsion Compact Wheel Treads Light Treads Leg Aluminum Leg Wheel Compact Wheel Utility High-capacity Storage Unit Device ECM Suite Storage High-capacity Storage Unit Processor Signal Interpreter Hackware Hacking Suite Protection Light Armor Plating Weapon Light Assault Rifle Energy Gun Small Laser Energy Cannon Beam Cannon Ballistic Gun Light Assault Rifle Build | -11 -10 -9 ------- Run | Yrd Mat Mat Slots Evolved 2 | . . 2 Power . | . . . Propulsion . | . . . Utility 2 | . . 2 Weapon . | . . . Parts Attached 26 | 7 9 10 Power 4 | 1 1 2 Engine 3 | 1 1 1 Core 1 | . . 1 Reactor . | . . . Propulsion 9 | 2 4 3 Treads 2 | . 2 . Leg 2 | 2 . . Wheel 5 | . 2 3 Hover . | . . . Flight . | . . . Utility 7 | 1 3 3 Device 2 | . 1 1 Storage 2 | 1 1 . Processor 1 | . . 1 Hackware 1 | . . 1 Protection 1 | . 1 . Artifact . | . . . Weapon 6 | 3 1 2 Energy Gun 4 | 2 . 2 Energy Cannon 1 | . 1 . Ballistic Gun 1 | 1 . . Ballistic Cannon . | . . . Launcher . | . . . Special Weapon . | . . . Impact Weapon . | . . . Slashing Weapon . | . . . Piercing Weapon . | . . . Special Melee Weapon . | . . . Unidentified Prototypes . | . . . Parts Lost 16 | . 6 10 Power 3 | . 1 2 Propulsion 5 | . 2 3 Utility 3 | . 1 2 Weapon 5 | . 2 3 Highest Loss Streak 5 | . 3 5 To Critical Strikes . | . . . Average Backups 15 | 3 13 18 Power 2 | . 1 4 Propulsion 7 | 1 8 8 Utility 2 | . 1 3 Weapon 2 | . 2 1 Tool/Special . | . . . Unused Backups 25 | . 4 21 Power 7 | . . 7 Propulsion 13 | . 4 9 Utility 3 | . . 3 Weapon 1 | . . 1 Tool/Special 1 | . . 1 Average Slot Usage (%) 91 | . 92 90 Engine 10 | . 13 6 Core 2 | . . 4 Treads 4 | . 7 . Wheel 19 | . 18 20 Device 5 | . 2 10 Storage 12 | . 14 11 Processor 2 | . . 6 Hackware 4 | . . 10 Protection 4 | . 5 4 Energy Gun 8 | . 9 7 Energy Cannon 6 | . 7 5 Ballistic Gun 7 | . 10 3 Peak Build Rating 14 | 6 9 14 Average Rating 9 | 4 7 12 On Entrance 5 | . 6 9 Avg Prop Armor Cover (%) . | . . . Naked Turns . | . . . Heaviest Build 54 | 14 52 54 Greatest Support 40 | 20 40 32 Greatest Overweight (x) 3 | 3 1 3 Average Overweight (x) 1 | . . 1 Largest Inventory Capacity 20 | 8 20 20 Average Capacity 19 | 7 19 20 Most Carried 20 | 6 20 20 Average Carried 15 | 3 13 18 Final Capacity 20 | 8 20 20 Final Carried 20 | 6 20 18 Class Distribution -------------------- 100% | Mutant Dominant Class ---------------- Mutant | -10/Materials Mutant | -9/Materials Resources | -11 -10 -9 ----------- Run | Yrd Mat Mat Matter Collected 492 | 222 181 89 Remotely 56 | . 56 . Salvage Created 960 | . 697 263 Parts 57 | . 36 21 Haulers Intercepted . | . . . Recyclers Shooed 4 | . 4 . Parts Field Recycled . | . . . Retrieved Matter . | . . . Parts Self-Destructed . | . . . Prevented . | . . . Parts Restored . | . . . Kills | -11 -10 -9 ------- Run | Yrd Mat Mat Combat Hostiles Destroyed 26 | . 14 12 Guns 17 | . 11 6 Cannons 7 | . 3 4 AOE 2 | . . 2 Classes Destroyed 7 | . 5 2 Worker 1 | . . 1 Recycler 3 | . 3 . Operator 1 | . 1 . Watcher 2 | . 1 1 Swarmer 13 | . 3 10 Grunt 12 | . 11 1 Sentry 1 | . . 1 Best Kill Streak 5 | . 5 4 Combat Bots Only 5 | . 5 4 Max Kills in Single Turn 2 | . 2 2 Gunslinging 1 | . 1 . Exploded 2 | . . 2 Melee . | . . . Uniques/NPCs Destroyed . | . . . Combat | -11 -10 -9 -------- Run | Yrd Mat Mat Hostile Shots Fired 218 | . 91 127 Missed 59 | . 19 40 Hits 159 | . 72 87 Projectile 159 | . 72 87 Critical Strikes 1 | . 1 . Damage Taken 1720 | . 783 937 Core 525 | . 124 401 Absorbed by Shields . | . . . Core Remaining (%) 75 | 100 50 . Volleys Fired 101 | . 55 46 Largest 2 | . 2 2 Hottest 100 | . 90 100 Shots Fired 174 | . 107 67 Gun 128 | . 82 46 Cannon 46 | . 25 21 Launcher . | . . . Special . | . . . Kinetic 58 | . 44 14 Thermal 107 | . 54 53 Explosive . | . . . Electromagnetic 9 | . 9 . Robot Hit Streak 7 | . 7 4 Robot Miss Streak 5 | . 5 5 Penetration Max . | . . . Secondary Targets 2 | . 2 . Max Gunslinging Chain 1 | . 1 . Shots Hit Robots 89 | . 58 31 Core Hits 46 | . 29 17 Critical Kills . | . . . Critical Parts Destroyed 1 | . . 1 Critical Strikes 2 | . 1 1 Burn 1 | . 1 . Destroy 1 | . . 1 Melee Attacks . | . . . Impact . | . . . Slashing . | . . . Piercing . | . . . Sneak Attacks . | . . . Combat Hostiles . | . . . Follow-up Attacks . | . . . Damage Inflicted 1175 | . 752 423 Guns 694 | . 464 230 Cannons 472 | . 279 193 Explosions . | . . . Melee . | . . . Ramming 9 | . 9 . Kinetic 254 | . 197 57 Thermal 820 | . 454 366 Explosive . | . . . Electromagnetic 92 | . 92 . Impact . | . . . Slashing . | . . . Piercing . | . . . Highest Corruption . | . . . Average Corruption . | . . . Corruption Purged . | . . . Corruption Blocked . | . . . Overload Shots . | . . . Overflow Damage . | . . . Projectiles . | . . . Explosions . | . . . Melee . | . . . Knockbacks . | . . . Impact . | . . . Kinetic . | . . . Secondary . | . . . Self-Inflicted Damage 4 | . 4 . Shots . | . . . Rammed 2 | . 2 . Targets Rammed 2 | . 2 . Kicked . | . . . Crushed . | . . . Highest Temperature 279 | . 279 200 Average Temperature 82 | . 96 53 Received Heat Transfer 360 | . 309 51 Siege Activations . | . . . Martial Activations . | . . . Shielding Activations . | . . . Robots Disrupted . | . . . Combat Hostiles . | . . . Robots Corrupted . | . . . Combat Hostiles . | . . . Parts Fried 1 | . 1 . Impact Corruptions . | . . . Robots Melted . | . . . Combat Hostiles . | . . . Parts Melted 2 | . 1 1 Heat Transferred 1991 | . 1184 807 Parts Sabotaged . | . . . Parts Stolen . | . . . Parts Stripped . | . . . Power Chain Reactions . | . . . Alert | -11 -10 -9 ------- Run | Yrd Mat Mat Maximum Alert Level . | . . . Low Security (%) 100 | 100 100 100 Level 1 . | . . . Level 2 . | . . . Level 3 . | . . . Level 4 . | . . . Level 5 . | . . . High Security . | . . . Max Security . | . . . Peak Influence 110 | . 110 70 Initial . | . . . Average 24 | . 33 16 Influence Increases 660 | . 367 293 Destroy 0b10 Robot/C 520 | . 280 240 Destroy 0b10 Robot/NC 35 | . 25 10 Destroy Leader 104 | . 62 42 Destroy Structure 1 | . . 1 Influence Decreases 646 | . 367 279 Time Decay 560 | . 317 243 Lost Part 86 | . 50 36 Squads Dispatched 6 | . 4 2 Investigation 4 | . 3 1 Extermination . | . . . Reinforcement 2 | . 1 1 Assault . | . . . Garrison . | . . . Intercept . | . . . Searches Triggered . | . . . Construction Impeded . | . . . Haulers Reinforced . | . . . Active Scanning Responses . | . . . Cargo Convoy Interrupts . | . . . Stealth | -11 -10 -9 --------- Run | Yrd Mat Mat Distress Signals 1 | . . 1 Communications Jammed . | . . . Distress Signals . | . . . Times Spotted 60 | . 26 34 Peak Tracking Total 7 | . 6 7 Tactical Retreats 7 | . . 7 ECM-based Alert Blocks 16 | . . 16 Traps | -11 -10 -9 ------- Run | Yrd Mat Mat Traps Triggered 5 | . 4 1 Indirectly . | . . . Trap Hack Attempts . | . . . Triggered . | . . . Disarmed . | . . . Reprogrammed . | . . . Reused . | . . . Traps Extracted . | . . . Installed . | . . . Triggered . | . . . Machines | -11 -10 -9 ---------- Run | Yrd Mat Mat Machines Disabled . | . . . Max in Single Turn . | . . . Machines Repaired . | . . . Machines Dismantled . | . . . Machines Sabotaged . | . . . Overloaded Fab Kills . | . . . Hacking | -11 -10 -9 --------- Run | Yrd Mat Mat Machines Accessed 5 | . 3 2 Terminals 4 | . 3 1 Fabricators . | . . . Repair Stations . | . . . Recycling Units . | . . . Scanalyzers 1 | . . 1 Garrison Access . | . . . Total Hacks 11 | . 3 8 Successful 10 | . 3 7 Failed . | . . . Catastrophic . | . . . Database Lockouts 1 | . . 1 Manual . | . . . Terminals 4 | . 3 1 Fabricators . | . . . Repair Stations . | . . . Recycling Units . | . . . Scanalyzers 7 | . . 7 Garrison Access . | . . . Terminal Hacks 4 | . 3 1 Record 2 | . 2 . Branch Access Points 1 | . . 1 Zone Layout 1 | . 1 . Fabricator Hacks . | . . . Repair Station Hacks . | . . . Recycling Unit Hacks . | . . . Scanalyzer 6 | . . 6 Insert Component 1 | . . 1 Analyze 1 | . . 1 Retrieve Study 4 | . . 4 Garrison Access Hacks . | . . . Unauthorized Hacks . | . . . Terminals . | . . . Fabricators . | . . . Repair Stations . | . . . Recycling Units . | . . . Scanalyzers . | . . . Garrison Access . | . . . Data Cores Recovered 1 | . 1 . Used . | . . . Hacking Detections 2 | . . 2 Full Trace Events 1 | . . 1 Feedback Events . | . . . Feedback Blocked . | . . . Robot Schematics Acquired . | . . . Robots Built . | . . . Authchips . | . . . Time . | . . . Total Robot Build Rating . | . . . Part Schematics Acquired 1 | . . 1 Parts Built . | . . . Authchips . | . . . Time . | . . . Total Part Build Rating . | . . . Part Studies Acquired 4 | . . 4 Parts Repaired . | . . . Time . | . . . Parts Recycled . | . . . Recycled Matter . | . . . Retrieved Matter . | . . . Retrieved Components . | . . . Parts Scanalyzed 1 | . . 1 Part Schematics Acquired 1 | . . 1 Parts Damaged . | . . . Bothacking | -11 -10 -9 ------------ Run | Yrd Mat Mat Used RIF Installer . | . . . Robots Hacked . | . . . Non-combat . | . . . Combat . | . . . Robot Hacks Applied . | . . . Relay Couplers Released . | . . . Fabnet Peak Effective % . | . . . Robots Rewired . | . . . Allies Hacked . | . . . Hacks Repelled . | . . . Allies | -11 -10 -9 -------- Run | Yrd Mat Mat Total Allies . | . . . Largest Group . | . . . Highest-Rated Group . | . . . Highest-Rated Ally . | . . . Total Orders . | . . . Ally Attacks . | . . . Total Damage . | . . . Kills . | . . . Allies Corrupted . | . . . Allies Melted . | . . . Intel | -11 -10 -9 ------- Run | Yrd Mat Mat Active Infowar (turns) 902 | . . 902 ECM 902 | . . 902 Robot Analysis Total . | . . . Derelict Logs Recovered . | . . . Drone Launches . | . . . Drone Recoveries . | . . . Exploration | -11 -10 -9 ------------- Run | Yrd Mat Mat Turns Passed 2140 | 89 1121 930 Spaces Moved 1131 | 57 664 410 Core 23 | 23 . . Treads 89 | . 89 . Legs 87 | 34 53 . Wheels 932 | . 522 410 Hover . | . . . Flight . | . . . Fastest Speed 50 | 50 105 95 Average Speed 120 | 123 124 113 Slowest Speed 240 | 200 240 135 Overloaded Moves . | . . . Propulsion Burnouts . | . . . Robots Hopped . | . . . Potential Cave-ins . | . . . Cave-ins Triggered . | . . . Exploration Rate (%) 46 | 4 99 35 Regions Visited 2 Branch Regions . Pre-discovered Areas . | . . . Known Exits Taken . | . . . Unknown Exits Taken 2 | 1 1 . Scrap Searched . | . . . Spaces Dug . | . . . Terrain Destroyed . | . . . Melee . | . . . Projectile . | . . . AOE . | . . . Terrain Rammed . | . . . Walls Destroyed . | . . . Machines Disabled . | . . . Actions | -11 -10 -9 --------- Run | Yrd Mat Mat Total 1754 | 75 866 813 Wait 428 | . 97 331 Move 1129 | 56 663 410 Hop . | . . . Pick Up 54 | 12 30 12 Fast Attach . | . . . Attach 24 | 6 8 10 Detach . | . . . Swap 3 | 1 2 . Drop 13 | . 9 4 Fire 101 | . 55 46 Melee . | . . . Ram 2 | . 2 . Kick . | . . . Crush . | . . . Escape Stasis . | . . . Rewire . | . . . Trap . | . . . Miscellaneous . | . . . Route ------- -11/Scrapyard -10/Materials (discovered 5 exits: *Mat x3 / [*Min] / [*Sub]) -9/Materials (discovered 2 exits: *Mat / Min) History --------- Turn | Location | Event 5 | -11/Scrapyard | Discovered new exit (range 16) 90 | -11/Scrapyard | Entered Materials 204 | -10/Materials | Discovered new exit (range 7) 300 | -10/Materials | Build established: Mutant 311 | -10/Materials | Discovered new exit (range 8) 637 | -10/Materials | Lost 3 parts (1p1u1w) 735 | -10/Materials | Discovered new exit (range 15) 948 | -10/Materials | Discovered new exit (range 15) 1179 | -10/Materials | Discovered new exit (range 16) 1211 | -10/Materials | Entered another Materials area 1211 | -9/Materials | Evolved 2 slots: Utility x2 1290 | -9/Materials | Identified exit to Mines 1621 | -9/Materials | Discovered new exit (range 8) 1628 | -9/Materials | Identified exit to Materials 1684 | -9/Materials | Central database locked down 1746 | -9/Materials | Lost 5 parts (1p2n2w) 1749 | -9/Materials | Core integrity fell below 50% 1749 | -9/Materials | Core integrity fell below 20% 2141 | -9/Materials | Destroyed by G-34 Mercenary with Small Laser Last Messages --------------- 01748_ K-01 Serf destroyed. 01748_ K-01 Serf collects debris. 01751_ M-13 Machinist repairs K-01 Serf Lgt. Ion Engine. 01751_ K-01 Serf collects debris. 01754_ Acquired Wheel+. 01754_ K-01 Serf collects debris. 01755_ Acquired 25 matter. 01759_ Acquired Lgt. Ion Engine. 01761_ Acquired 10 matter. 01762_ K-01 Serf collects debris. 01763_ Acquired Wheel+. 01765_ K-01 Serf collects debris. 01767_ Acquired Wheel+. 01769_ K-01 Serf collects debris. 01792_ Connecting with Terminal... 01795_ K-01 Serf collects debris. 02102_ Acquired 5 matter. 02113_ ECM Suite destroyed. 02129_ G-34 Mercenary destroyed. Map ----- +----------------------------------------------------+ | #????????????????????????????????????????????????? | | #????????????????????????????????????????????????? | | #????????????????????????????????????????????????? | | #???###??????????????????????????????????????????? | | #??? #?????????????????????????????????????????? | | #??? ?????????????????????????????????????????? | | #??? #?????????????????????????????????????????? | | #??# #?????????????????????????????????????????? | | #??# #?????????????????????????????????????????? | | #??# #?????????????????????????????????????????? | | #??# #?????????????????????????????????????????? | | #??# #????????????? ?????????????????????????? | | #??# #????????????# #????????????????????????? | | #??# #????????????# #????????????????????????? | | #??# #????????????# #????????????????????????? | | #??# #????????????# #????????????????????????? | | #??# #????????????# ####?????????????????????? | | #### #????????????# ??????????????????????? | | #????????????+ ???????????????????????? | | #????????????# ????????????????????????? | | #????????????# #????????????????????????? | | #### #????????????# #????????????????????????? | | " ## #????????????# #????????????????????????? | | " ## %############## #????????????????????????? | | ## ##########???????????????? | | ## ! *@=! g ss s a????????? | | ### ##########???????????????? | | # ###############????????????????????????? | | ##?????????????????????????????????????? | | #?????????????????????????????????????? | | ##?????????????????????????????????????? | | #?????????????????????????????????????? | | #?????????????????????????????????????? | | #?????????????????????????????????????? | | ##?????????????????????????????????????? | | #??????????????????????????????????????? | | | | | | | | | | | | | | | | | | | | | | | | | | | | | +----------------------------------------------------+ Best States ------------- Heat Dissipation 28 Energy Generation 14 Energy Capacity 250 Matter Stores 300 Matter Capacity 300 Sight Range 16 Terrain Scan Density 10 ECM Strength 1 Armor Coverage 150 Evasion (%) 55 Recoil Reduction 2 Offensive Hacking 10 Item Schematics ----------------- Com. Wheel | -9/Materials | Scanalyzed Robot Schematics ------------------ None Fabricated ------------ Nothing Repaired ---------- Nothing Studied --------- Com. Wheel | -9/Materials | Hacked Wheel | -9/Materials | Hacked Grenade Launcher | -9/Materials | Hacked Datajack | -9/Materials | Hacked Alien Tech Used ----------------- None Achievements -------------- Item+ Challenges ------------ None Game ------ Seed JunkMetafieldBallwheel Manual? 0 Play Time 00:28:49 Cumulative 35.3 hours Start 2025.12.18 @ 12:27:43 End 2025.12.18 @ 13:06:20 Sessions 1 Manual Loads 0 Difficulty Rogue Special Mode None Game No. 53 Rogue 53 Adventurer 0 Explorer 0 Win Type - Total 0 Types 0/0/0/0/0/0/0/0/0/0 Lore% 16 Gallery% 21 Achievement% 14 Wizard Run 0 Options --------- Layout 2 ASCII 1 Keyboard 0 Movement Mouse Keybinds 0 Fullscreen 1 Font 16/SmallcapsGlow Map View 50x44 Zoom Use 0% Tactical HUD 1 Map Filters NONE Filters NONE Steam SD RUN: 9f70aa37-1ac5-42d7-a40c-67f47cf7c96e